Cogmind - Beta 10.2 *** ADVENTURER MODE // 2022.02.19 @ 00:35:29 Player: woegarden Result: Destroyed by D-53 Grenadier with Mini Grenade Launcher Performance ------------- Evolutions (1) 500 Regions Visited (3) 600 Robots Destroyed (14) 70 Value Destroyed (196) 196 Prototype IDs (1) 20 Alien Tech Used (0) 0 Bonus (0) 0 TOTAL SCORE: 1386 Bonus ------- None Cogmind --------- Core Integrity 0/400 Matter 184/300 Energy 275/275 System Corruption 7% Temperature Cool (0) Movement Core (450) Ox8 Location -9/Mines Parts ------- > --- POWER (2) -------- Deuterium Engine > --- PROPULSION (3) --- (None) > --- UTILITY (2) ------ Large Storage Unit > --- WEAPON (2) ------- (None) > --- INVENTORY (10) --- Cooling System Medium Storage Unit Medium Storage Unit Sensor Array Signal Interpreter Datajack Peak State ------------ > --- POWER ------------ Backup Power I Cooled Ion Engine > --- PROPULSION ------- Hover Unit Hover Unit Hover Unit > --- UTILITY ---------- Large Storage Unit Targeting Computer > --- WEAPON ----------- Heavy Assault Rifle Autogun > --- INVENTORY -------- Backup Power I Cooled Ion Engine Cooled Ion Engine Cooling System Medium Storage Unit Medium Storage Unit Weight Redist. System Sensor Array Signal Interpreter Datajack [Rating: 14] Favorites ----------- Power Backup Power I Engine Backup Power I Propulsion Aluminum Leg Leg Aluminum Leg Hover Unit Hover Unit Utility Large Storage Unit Device Weight Redist. System Storage Large Storage Unit Processor Targeting Computer Weapon Light Assault Rifle Energy Gun Beam Rifle Ballistic Gun Light Assault Rifle Launcher Grenade Launcher Build | -11 -10 -9 -9 ------- Run | Scr Mat Mat Min Slots Evolved 2 | . . 2 . Power 1 | . . 1 . Propulsion 1 | . . 1 . Utility . | . . . . Weapon . | . . . . Parts Attached 32 | 3 8 18 3 Power 8 | . 1 6 1 Engine 8 | . 1 6 1 Core . | . . . . Reactor . | . . . . Propulsion 7 | 1 1 5 . Treads . | . . . . Leg 3 | 1 1 1 . Wheel . | . . . . Hover 4 | . . 4 . Flight . | . . . . Utility 8 | . 3 3 2 Device 2 | . . . 2 Storage 4 | . 2 2 . Processor 2 | . 1 1 . Hackware . | . . . . Protection . | . . . . Artifact . | . . . . Weapon 9 | 2 3 4 . Energy Gun 1 | . . 1 . Energy Cannon . | . . . . Ballistic Gun 7 | 2 2 3 . Ballistic Cannon . | . . . . Launcher 1 | . 1 . . Special Weapon . | . . . . Impact Weapon . | . . . . Slashing Weapon . | . . . . Piercing Weapon . | . . . . Special Melee Weapon . | . . . . Unidentified Prototypes 1 | . . 1 . Parts Lost 13 | . 2 10 1 Power 5 | . 1 4 . Propulsion 3 | . . 3 . Utility 2 | . . 1 1 Weapon 3 | . 1 2 . Highest Loss Streak 10 | . 2 10 1 Average Slot Usage (%) 79 | . 96 79 23 Engine 14 | . 13 16 11 Leg 17 | . 28 13 . Hover 4 | . . 8 . Storage 11 | . 13 11 11 Processor 10 | . 12 10 . Ballistic Gun 15 | . 14 18 . Launcher 4 | . 12 . . Naked Turns . | . . . . Heaviest Build 33 | 3 23 33 25 Greatest Support 20 | 10 20 20 9 Greatest Overweight (x) 10 | . 1 10 8 Average Overweight (x) 1 | . . . 7 Largest Inventory Capacity 10 | 4 10 10 10 Average Capacity 9 | 4 8 9 10 Most Carried 10 | 4 3 10 7 Average Carried 4 | 2 . 5 6 Final Capacity 10 | 4 10 10 10 Final Carried 8 | 4 2 8 6 Class Distribution -------------------- 100% | Mutant Dominant Class ---------------- Mutant | -10/Materials Mutant | -9/Materials Mutant | -9/Mines Resources | -11 -10 -9 -9 ----------- Run | Scr Mat Mat Min Matter Collected 461 | 215 156 90 . Remotely . | . . . . Salvage Created 422 | . 259 163 . Parts 31 | . 15 16 . Haulers Intercepted 2 | . 1 1 . Recyclers Shooed 1 | . 1 . . Parts Field Recycled . | . . . . Retrieved Matter . | . . . . Parts Self-Destructed . | . . . . Prevented . | . . . . Kills | -11 -10 -9 -9 ------- Run | Scr Mat Mat Min Combat Hostiles Destroyed 6 | . 5 1 . Guns 3 | . 2 1 . AOE 3 | . 3 . . Classes Destroyed 9 | . 6 3 . Worker 2 | . 1 1 . Builder 1 | . 1 . . Tunneler 1 | . . 1 . Hauler 2 | . 1 1 . Recycler 1 | . 1 . . Watcher 1 | . . 1 . Swarmer 3 | . 3 . . Grunt 2 | . 2 . . Sentry 1 | . . 1 . Best Kill Streak 6 | . 6 2 . Combat Bots Only 3 | . 3 1 . Max Kills in Single Turn 3 | . 3 1 . Gunslinging . | . . . . Exploded 2 | . 2 . . Melee . | . . . . Uniques/NPCs Destroyed . | . . . . Combat | -11 -10 -9 -9 -------- Run | Scr Mat Mat Min Damage Taken 1618 | . 354 1124 140 Core 521 | . 112 326 83 Absorbed by Shields . | . . . . Core Remaining (%) 77 | 100 55 . . Volleys Fired 59 | . 46 13 . Largest 2 | . 1 2 . Hottest 79 | . 30 79 . Shots Fired 71 | . 46 25 . Gun 67 | . 42 25 . Cannon . | . . . . Launcher 4 | . 4 . . Special . | . . . . Kinetic 65 | . 42 23 . Thermal 2 | . . 2 . Explosive 4 | . 4 . . Electromagnetic . | . . . . Robot Hit Streak 19 | . 17 19 . Robot Miss Streak 1 | . 1 1 . Penetration Max . | . . . . Secondary Targets . | . . . . Shots Hit Robots 59 | . 38 21 . Core Hits 29 | . 21 8 . Critical Hits 1 | . 1 . . Critical Kills . | . . . . Critical Parts Destroyed 1 | . 1 . . Melee Attacks . | . . . . Impact . | . . . . Slashing . | . . . . Piercing . | . . . . Sneak Attacks . | . . . . Combat Hostiles . | . . . . Follow-up Attacks . | . . . . Damage Inflicted 956 | . 678 278 . Guns 550 | . 281 269 . Cannons . | . . . . Explosions 390 | . 390 . . Melee . | . . . . Ramming 16 | . 7 9 . Kinetic 536 | . 281 255 . Thermal 14 | . . 14 . Explosive 390 | . 390 . . Electromagnetic . | . . . . Impact . | . . . . Slashing . | . . . . Piercing . | . . . . Highest Corruption 7 | . . 7 7 Average Corruption 6 | . . 3 7 Corruption Purged . | . . . . Effects 2 | . . 1 1 Message Errors 1 | . . 1 . Matter Fused 1 | . . . 1 Overload Shots . | . . . . Overflow Damage 11 | . 11 . . Projectiles . | . . . . Explosions 11 | . 11 . . Melee . | . . . . Knockbacks 1 | . 1 . . Impact 1 | . 1 . . Kinetic . | . . . . Secondary . | . . . . Self-Inflicted Damage 17 | . 16 1 . Shots 1 | . 1 . . Rammed 7 | . . 7 . Targets Rammed 10 | . 2 8 . Kicked 3 | . 2 1 . Crushed . | . . . . Highest Temperature 28 | . 12 28 . Average Temperature 9 | . 7 10 . Received Heat Transfer 744 | . 234 510 . Siege Activations . | . . . . Robots Corrupted . | . . . . Combat Hostiles . | . . . . Parts Fried . | . . . . Impact Corruptions . | . . . . Robots Melted . | . . . . Combat Hostiles . | . . . . Parts Melted 1 | . . 1 . Heat Transferred 37 | . . 37 . Parts Sabotaged . | . . . . Parts Stolen . | . . . . Parts Stripped . | . . . . Power Chain Reactions . | . . . . Missiles Intercepted . | . . . . Alert | -11 -10 -9 -9 ------- Run | Scr Mat Mat Min Peak Influence 172 | . 172 153 . Initial 54 | . . 54 . Average 79 | . 113 81 . Maximum Alert Level . | . . . . Low Security (%) 100 | 100 100 100 100 Level 1 . | . . . . Level 2 . | . . . . Level 3 . | . . . . Level 4 . | . . . . Level 5 . | . . . . High Security . | . . . . Max Security . | . . . . Squads Dispatched 1 | . 1 . . Investigation 1 | . 1 . . Extermination . | . . . . Reinforcement . | . . . . Assault . | . . . . Garrison . | . . . . Intercept . | . . . . Construction Impeded . | . . . . Haulers Reinforced . | . . . . Stealth | -11 -10 -9 -9 --------- Run | Scr Mat Mat Min Distress Signals 7 | . 2 4 1 Communications Jammed . | . . . . Distress Signals . | . . . . Times Spotted 27 | . 13 13 1 Peak Tracking Total 9 | . 5 9 1 Tactical Retreats 1 | . . 1 . Traps | -11 -10 -9 -9 ------- Run | Scr Mat Mat Min Traps Triggered 1 | . . 1 . Indirectly . | . . . . Trap Hack Attempts . | . . . . Triggered . | . . . . Disarmed . | . . . . Reprogrammed . | . . . . Reused . | . . . . Traps Extracted . | . . . . Installed . | . . . . Triggered . | . . . . Machines | -11 -10 -9 -9 ---------- Run | Scr Mat Mat Min Machines Disabled . | . . . . Max in Single Turn . | . . . . Machines Sabotaged . | . . . . Garrisons Compromised . | . . . . Overloaded Fab Kills . | . . . . Fab Network Shutdowns . | . . . . Hacking | -11 -10 -9 -9 --------- Run | Scr Mat Mat Min Machines Accessed 4 | . 1 3 . Terminals 2 | . 1 1 . Fabricators . | . . . . Repair Stations 1 | . . 1 . Recycling Units 1 | . . 1 . Scanalyzers . | . . . . Garrison Access . | . . . . Total Hacks 7 | . 3 4 . Successful 4 | . . 4 . Failed 3 | . 3 . . Catastrophic . | . . . . Database Lockouts . | . . . . Manual . | . . . . Terminals 5 | . 3 2 . Fabricators . | . . . . Repair Stations 1 | . . 1 . Recycling Units 1 | . . 1 . Scanalyzers . | . . . . Garrison Access . | . . . . Terminal Hacks 2 | . . 2 . Alert Level 1 | . . 1 . Maintenance Status 1 | . . 1 . Fabricator Hacks . | . . . . Repair Station Hacks 1 | . . 1 . Refit 1 | . . 1 . Recycling Unit Hacks 1 | . . 1 . Retrieve Components 1 | . . 1 . Scanalyzer . | . . . . Garrison Access Hacks . | . . . . Unauthorized Hacks . | . . . . Terminals . | . . . . Fabricators . | . . . . Repair Stations . | . . . . Recycling Units . | . . . . Scanalyzers . | . . . . Garrison Access . | . . . . Data Cores Recovered . | . . . . Used . | . . . . Hacking Detections 2 | . 1 1 . Full Trace Events 1 | . 1 . . Feedback Events . | . . . . Feedback Blocked . | . . . . Robot Schematics Acquired . | . . . . Robots Built . | . . . . Matter . | . . . . Time . | . . . . Total Robot Build Rating . | . . . . Part Schematics Acquired . | . . . . Parts Built . | . . . . Matter . | . . . . Time . | . . . . Total Part Build Rating . | . . . . Parts Repaired . | . . . . Time . | . . . . Parts Recycled . | . . . . Recycled Matter . | . . . . Retrieved Matter . | . . . . Retrieved Components . | . . . . Parts Scanalyzed . | . . . . Part Schematics Acquired . | . . . . Parts Damaged . | . . . . Bothacking | -11 -10 -9 -9 ------------ Run | Scr Mat Mat Min Used RIF Installer . | . . . . Robots Hacked . | . . . . Non-combat . | . . . . Combat . | . . . . Robot Hacks Applied . | . . . . Relay Couplers Released . | . . . . Robots Rewired . | . . . . Allies Hacked . | . . . . Hacks Repelled . | . . . . Allies | -11 -10 -9 -9 -------- Run | Scr Mat Mat Min Total Allies . | . . . . Largest Group . | . . . . Highest-Rated Group . | . . . . Highest-Rated Ally . | . . . . Total Orders . | . . . . Ally Attacks . | . . . . Total Damage . | . . . . Kills . | . . . . Allies Corrupted . | . . . . Allies Melted . | . . . . Intel | -11 -10 -9 -9 ------- Run | Scr Mat Mat Min Robot Analysis Total . | . . . . Derelict Logs Recovered . | . . . . Drone Launches . | . . . . Drone Recoveries . | . . . . Exploration | -11 -10 -9 -9 ------------- Run | Scr Mat Mat Min Turns Passed 1037 | 57 342 528 110 Spaces Moved 553 | 50 174 304 25 Core 58 | 27 . 6 25 Treads . | . . . . Legs 418 | 23 174 221 . Wheels . | . . . . Hover 77 | . . 77 . Flight . | . . . . Fastest Speed 50 | 50 120 112 150 Average Speed 147 | 82 137 139 438 Slowest Speed 550 | 120 150 550 450 Overloaded Moves . | . . . . Propulsion Burnouts . | . . . . Robots Hopped . | . . . . Cave-ins Triggered . | . . . . Exploration Rate (%) 22 | 3 47 29 12 Regions Visited 3 Branch Regions 1 Pre-discovered Areas . | . . . . Known Exits Taken . | . . . . Unknown Exits Taken 3 | 1 1 1 . Scrap Searched . | . . . . Spaces Dug . | . . . . Terrain Destroyed 23 | . 23 . . Melee . | . . . . Projectile . | . . . . AOE 23 | . 23 . . Terrain Rammed . | . . . . Walls Destroyed . | . . . . Machines Disabled . | . . . . Actions | -11 -10 -9 -9 --------- Run | Scr Mat Mat Min Total 705 | 64 238 374 29 Wait 13 | 8 1 4 . Move 550 | 49 173 303 25 Hop . | . . . . Pick Up 28 | 4 5 19 . Fast Attach 3 | 3 . . . Attach 15 | . 4 8 3 Detach 3 | . . 2 1 Swap 14 | . 4 10 . Drop 10 | . 3 7 . Fire 59 | . 46 13 . Melee . | . . . . Ram 7 | . . 7 . Kick 3 | . 2 1 . Crush . | . . . . Escape Stasis . | . . . . Rewire . | . . . . Trap . | . . . . Miscellaneous . | . . . . Route ------- -11/Scrapyard -10/Materials (discovered 3 exits: *Mat x2 / [*Min]) -9/Materials -9/Mines History --------- Turn | Location | Event 28 | -11/Scrapyard | Discovered new exit (range 15) 58 | -11/Scrapyard | Entered Materials 138 | -10/Materials | Discovered new exit (range 15) 267 | -10/Materials | Discovered new exit (range 7) 311 | -10/Materials | Build established: Mutant 376 | -10/Materials | Discovered new exit (range 12) 400 | -10/Materials | Entered another Materials area 400 | -9/Materials | Evolved 2 slots: Power x1, Propulsion x1 846 | -9/Materials | Discovered new exit (range 14) 910 | -9/Materials | Core integrity fell below 50% 928 | -9/Materials | Entered Mines 929 | -9/Mines | Core integrity fell below 20% 956 | -9/Mines | Lost 10 parts (4p3n1u2w) 986 | -9/Mines | Assembled infested the area 1038 | -9/Mines | Destroyed by D-53 Grenadier with Mini Grenade Launcher Last Messages --------------- 00899_ Slammed into Y-45 Defender. 00899_ Destabilizing: System corrupted (+1). 00903_ Imp. Targeting Computer destroyed. 00903_ System corrupted by crushing effect (+2). 00905_ G-34 Mercenary destroyed. 00910_ E2&G6AM= K|PK48DXFCOTC3 TFP| 00912_ K-01 Serf cleans the Pressure Siphon. 00914_ Deuterium Engine destroyed. 00914_ System corrupted by crushing effect (+3). 00915_ K-01 Serf cleans the Pressure Siphon. 00915_ B-36 Bruiser destroyed. 00916_ R-06 Scavenger collects Sml. Laser. 00921_ K-01 Serf cleans the Pressure Siphon. 00925_ Cld. Ion Engine destroyed. LOCATION=UNKNOWN GOAL=ESCAPE 00946_ System corrupted: Matter fused (-8). 00986_ ALERT: Infestation in the mines, dispatching Demolisher response squad. 01036_ Weight Redist. System destroyed. Map ----- +----------------------------------------------------+ | ?????????????????????????????????????????? | | ?????????????????????????????????????????? | | ?????????????????????????????????????????? | | ?????????????????????????????????????????? | | ?????????????????????????????????????????? | | ?????????????????????????????????????????? | | ?????????????????????????????????????????? | | ?????????????????????????????????????????? | | ?????????????????????????????????????????? | | ?????????????????????????????????????????? | | ???????????????????????????#?????????????? | | ??????????????????????????? ????????????? | | ??????????????????????????? #????????????? | | ????? ??????????????????? #????????????? | | ????? ??????????????????? #????????????? | | ????? ??????????????????? #????????????? | | ????# #?????????????????? #????????????? | | ????# #?????????????????? #????????????? | | ????# #?????????????????? #????????????? | | ????# #????????????###### #????????????? | | ????# #??????####### #????????????? | | ????# #?????## #????????????? | | ????# #????## #????????????? | | ????# #???## d #????????????? | | ????# #???# #????????????? | | ????# #??## # @ #????????????? | | ????# #?## #### #????????????? | | ????# ### ##??# ## #????????????? | | ????# ## #???####?? #????????????? | | ????# #????????? #????????????? | | ????# """ ##????????? #????????????? | | ????# """ ##???????????##????????????? | | ????# """ ##??????????????????????????? | | ????## ##???????????????????????????? | | ?????## ##????????????????????????????? | | ??????## ##?????????????????????????????? | | ???????####??????????????????????????????? | | ?????????????????????????????????????????? | | ?????????????????????????????????????????? | | ?????????????????????????????????????????? | | ?????????????????????????????????????????? | | ?????????????????????????????????????????? | | ?????????????????????????????????????????? | | ?????????????????????????????????????????? | | ?????????????????????????????????????????? | | ?????????????????????????????????????????? | | ?????????????????????????????????????????? | | ?????????????????????????????????????????? | | ?????????????????????????????????????????? | | ?????????????????????????????????????????? | +----------------------------------------------------+ Best States ------------- Heat Dissipation 50 Energy Generation 23 Energy Capacity 455 Matter Stores 300 Matter Capacity 300 Sight Range 16 Terrain Scan Density 10 Resistance: KI 20 Resistance: TH 20 Resistance: EX 20 Resistance: EM 20 Resistance: I 20 Resistance: S 20 Resistance: P 20 Evasion (%) 50 Targeting Accuracy 6 Offensive Hacking 10 Item Schematics ----------------- None Robot Schematics ------------------ None Fabricated ------------ Nothing Alien Tech Used ----------------- None Achievements -------------- None Challenges ------------ None Game ------ Seed FocalAerolevFemtoactuators Manual? 0 Play Time 00:18:37 Cumulative 14.3 hours Start 2022.02.18 @ 06:40:38 End 2022.02.19 @ 00:35:29 Sessions 3 Manual Loads 0 Difficulty Adventurer Special Mode None Game No. 20 Rogue 0 Adventurer 20 Explorer 0 Win Type - Total 0 Types 0/0/0/0/0/0/0/0/0 Lore% 18 Gallery% 17 Achievement% 14 Wizard Run 0 Options --------- ASCII 0 Keyboard 0 Movement Mouse Keybinds 0 Fullscreen 1 Font 16/Proggy Map View 76x50 Tactical HUD 1 Map Filters NONE Filters NONE Steam 1 RUN: d3631f59-73be-45a2-b3c6-889762df079e